fUST/lending_fUST_20240906
["ID","MTS","AMOUNT","RATE_DAILY","PERIOD"]
[337376597,1725634257967,-500.0,0.00020547,2]
[337376599,1725634257977,-500.0,0.00020547,2]
[337376601,1725634257988,-588.48,0.00020547,2]
[337376603,1725634258000,-523.48,0.00020547,2]
[337376605,1725634258011,-500.0,0.00020547,2]
[337376607,1725634258022,-500.0,0.00020547,2]
[337376609,1725634258033,-500.0,0.00020547,2]
[337376612,1725634258043,-500.0,0.00020547,2]
[337376614,1725634258053,-500.0,0.00020547,2]
[337376616,1725634258064,-500.0,0.00020547,2]
[337376618,1725634258075,-500.0,0.00020547,2]
[337376620,1725634258087,-500.0,0.00020547,2]
[337376644,1725634258320,-867.81,0.00020547,2]
[337376647,1725634258333,-250.21885189,0.00020547,2]
[337376649,1725634258344,-500.0,0.00020547,2]
[337376651,1725634258353,-500.0,0.00020547,2]
[337376653,1725634258363,-500.0,0.00020547,2]
[337376654,1725634258373,-500.0,0.00020547,2]
[337376657,1725634258392,-500.0,0.00020547,2]
[337376658,1725634258402,-500.0,0.00020547,2]
[337376661,1725634258413,-500.0,0.00020547,2]
[337376663,1725634258422,-500.0,0.00020547,2]
[337376665,1725634258432,-641.22572357,0.00020547,2]
[337376667,1725634258443,-500.0,0.00020547,2]
[337376669,1725634258452,-500.0,0.00020547,2]
[337376670,1725634258462,-780.63,0.00020547,2]
[337376672,1725634258471,-500.0,0.00020547,2]
[337376674,1725634258481,-500.0,0.00020547,2]
[337376677,1725634258492,-500.0,0.00020547,2]
[337376679,1725634258501,-1013.92,0.00020547,2]
[337376681,1725634258511,-500.0,0.00020547,2]
[337376683,1725634258521,-968.79,0.00020547,2]
[337376685,1725634258531,-500.0,0.00020547,2]
[337376687,1725634258541,-503.24,0.00020547,2]
[337376689,1725634258551,-500.0,0.00020547,2]
[337376691,1725634258561,-664.17,0.00020547,2]
[337376693,1725634258571,-500.0,0.00020547,2]
[337376695,1725634258581,-804.61,0.00020547,2]
[337376697,1725634258594,-500.0,0.00020547,2]
[337376699,1725634258608,-500.0,0.00020547,2]
[337376701,1725634258619,-500.0,0.00020547,2]
[337376703,1725634258631,-500.0,0.00020547,2]
[337376705,1725634258641,-1044.32,0.00020547,2]
[337376708,1725634258650,-519.26,0.00020547,2]
[337376709,1725634258660,-500.0,0.00020547,2]
[337376711,1725634258669,-702.36,0.00020547,2]
[337376713,1725634258680,-679.13,0.00020547,2]
[337376715,1725634258690,-500.0,0.00020547,2]
[337376717,1725634258700,-1006.9,0.00020547,2]
[337376720,1725634258711,-580.89,0.00020547,2]
[337376721,1725634258721,-500.0,0.00020547,2]
[337376724,1725634258731,-500.0,0.00020547,2]
[337376726,1725634258741,-500.0,0.00020547,2]
[337376728,1725634258752,-587.02,0.00020547,2]
[337376730,1725634258763,-500.0,0.00020547,2]
[337376732,1725634258773,-500.0,0.00020547,2]
[337376734,1725634258783,-500.0,0.00020547,2]
[337376736,1725634258793,-500.0,0.00020547,2]
[337376738,1725634258802,-500.0,0.00020547,2]
[337376740,1725634258814,-500.0,0.00020547,2]
[337376742,1725634258824,-151.671406,0.00020547,2]
[337376744,1725634258834,-928.12,0.00020547,2]
[337376746,1725634258844,-500.0,0.00020547,2]
[337376748,1725634258854,-500.0,0.00020547,2]
[337376750,1725634258864,-500.0,0.00020547,2]
[337376752,1725634258873,-762.63,0.00020547,2]
[337376754,1725634258884,-500.0,0.00020547,2]
[337376756,1725634258893,-500.0,0.00020547,2]
[337376758,1725634258903,-500.0,0.00020547,2]
[337376760,1725634258912,-500.0,0.00020547,2]
[337376762,1725634258922,-500.0,0.00020547,2]
[337376764,1725634258932,-151.0,0.00020547,2]
[337376767,1725634258944,-151.0,0.00020547,2]
[337376769,1725634258953,-1107.21,0.00020547,2]
[337376771,1725634258963,-500.0,0.00020547,2]
[337376773,1725634258973,-459.00752013,0.00020547,2]
[337376775,1725634258984,-742.7,0.00020547,2]
[337376777,1725634258995,-509.63,0.00020547,2]
[337376779,1725634259005,-806.17,0.00020547,2]
[337376781,1725634259014,-1025.63,0.00020547,2]
[337376783,1725634259024,-1110.12,0.00020547,2]
[337376785,1725634259034,-500.0,0.00020547,2]
[337376787,1725634259044,-397.88958567,0.00020547,2]
[337376789,1725634259054,-500.0,0.00020547,2]
[337376791,1725634259065,-1341.74,0.00020547,2]
[337376793,1725634259074,-500.0,0.00020547,2]
[337376795,1725634259084,-500.0,0.00020547,2]
[337376797,1725634259094,-500.0,0.00020547,2]
[337376799,1725634259104,-500.0,0.00020547,2]
[337376800,1725634259114,-1912.01,0.00020547,2]
[337376802,1725634259124,-151.0,0.00020547,2]
[337376804,1725634259133,-500.0,0.00020547,2]
[337376806,1725634259143,-500.0,0.00020547,2]
[337376808,1725634259153,-560.53,0.00020547,2]
[337376811,1725634259163,-500.0,0.00020547,2]
[337376813,1725634259174,-151.0,0.00020547,2]
[337376815,1725634259184,-500.0,0.00020547,2]
[337376817,1725634259195,-993.14,0.00020547,2]
[337376819,1725634259205,-500.0,0.00020547,2]
[337376821,1725634259215,-500.0,0.00020547,2]
[337376823,1725634259226,-936.3,0.00020547,2]
[337376825,1725634259236,-151.0,0.00020547,2]
[337376827,1725634259246,-500.0,0.00020547,2]
[337376829,1725634259256,-1292.57,0.00020547,2]
[337376831,1725634259266,-867.01,0.00020547,2]
[337376833,1725634259276,-184.196246,0.00020547,2]
[337376835,1725634259288,-515.26,0.00020547,2]
[337376837,1725634259298,-500.0,0.00020547,2]
[337376839,1725634259307,-184.196246,0.00020547,2]
[337376841,1725634259318,-1139.41,0.00020547,2]
[337376843,1725634259327,-693.45,0.00020547,2]
[337376845,1725634259337,-606.89,0.00020547,2]
[337376846,1725634259347,-727.28,0.00020547,2]
[337376848,1725634259356,-500.0,0.00020547,2]
[337376850,1725634259366,-1451.96,0.00020547,2]
[337376852,1725634259378,-62882.5,0.00020547,2]
[337376854,1725634259388,-500.0,0.00020547,2]
[337376857,1725634259398,-500.0,0.00020547,2]
[337376859,1725634259408,-1617.36,0.00020547,2]
[337376861,1725634259418,-500.0,0.00020547,2]
[337376863,1725634259428,-743.58,0.00020547,2]
[337376865,1725634259438,-500.0,0.00020547,2]
[337376866,1725634259450,-1351.51,0.00020547,2]
[337376869,1725634259459,-500.0,0.00020547,2]
[337376871,1725634259470,-1721.2,0.00020547,2]
[337376873,1725634259480,-500.0,0.00020547,2]
[337376875,1725634259490,-500.0,0.00020547,2]
[337376877,1725634259499,-4605.35,0.00020547,2]
[337376879,1725634259508,-1114.14,0.00020547,2]
[337376881,1725634259520,-1017.62,0.00020547,2]
[337376883,1725634259530,-500.0,0.00020547,2]
[337376885,1725634259539,-500.0,0.00020547,2]
[337376887,1725634259549,-500.0,0.00020547,2]
[337376889,1725634259563,-1086.64,0.00020547,2]
[337376891,1725634259573,-1507.48,0.00020547,2]
[337376893,1725634259583,-1118.55,0.00020547,2]
[337376895,1725634259593,-424.49770387,0.00020547,2]
[337376897,1725634259603,-1850.56,0.00020547,2]
[337376899,1725634259613,-1084.25,0.00020547,2]
[337376901,1725634259624,-104.20829937,0.00020547,2]
[337376902,1725634259639,-999.99337049,0.00020547,2]
[337377025,1725634260973,-500.0,0.00019177,2]
[337377027,1725634260982,-500.0,0.00019177,2]
[337377029,1725634260991,-200.0,0.00019177,2]
[337377031,1725634261001,-500.0,0.00019177,2]
[337377033,1725634261013,-500.0,0.00019177,2]
[337377035,1725634261024,-500.0,0.00019177,2]
[337377037,1725634261034,-500.0,0.00019178,2]
[337377039,1725634261045,-500.0,0.00019178,2]
[337377042,1725634261056,-500.0,0.00019178,2]
[337377044,1725634261065,-500.0,0.00019452,2]
[337377045,1725634261074,-500.0,0.00019452,2]
[337377048,1725634261084,-500.0,0.00019726,2]
[337377049,1725634261093,-500.0,0.00019726,2]
[337377051,1725634261102,-500.0,0.00019726,2]
[337377053,1725634261112,-500.0,0.0002,2]
[337377055,1725634261120,-266.61,0.0002,2]
[337377057,1725634261130,-500.0,0.00020273,2]
[337377059,1725634261140,-520.55833014,0.00020547,2]
[337377062,1725634261150,-530.32,0.00020547,2]
[337377063,1725634261160,-500.0,0.00020547,2]
[337377065,1725634261169,-500.0,0.00020547,2]
[337377067,1725634261178,-1063.88,0.00020547,2]
[337377069,1725634261188,-500.0,0.00020547,2]
[337377071,1725634261199,-500.0,0.00020547,2]
[337377073,1725634261209,-500.0,0.00020547,2]
[337377075,1725634261218,-500.0,0.00020547,2]
[337377077,1725634261227,-500.0,0.00020547,2]
[337377079,1725634261238,-1178.58,0.00020547,2]
[337377081,1725634261247,-984.17,0.00020547,2]
[337377083,1725634261257,-500.0,0.00020547,2]
[337377085,1725634261266,-1669.57,0.00020547,2]
[337377087,1725634261275,-774.33,0.00020547,2]
[337377089,1725634261285,-500.0,0.00020547,2]
[337377091,1725634261298,-1002.38,0.00020547,2]
[337377093,1725634261307,-636.46,0.00020547,2]
[337377095,1725634261316,-753.25,0.00020547,2]
[337377097,1725634261327,-500.0,0.00020547,2]
[337377099,1725634261338,-521.35,0.00020547,2]
[337377101,1725634261347,-711.03,0.00020547,2]
[337377103,1725634261356,-500.0,0.00020547,2]
[337377105,1725634261367,-500.0,0.00020547,2]
[337377107,1725634261376,-500.0,0.00020547,2]
[337377109,1725634261386,-500.0,0.00020547,2]
[337377111,1725634261396,-643.68,0.00020547,2]
[337377113,1725634261405,-410.94640588,0.00020547,2]
[337377115,1725634261414,-1297.23,0.00020547,2]
[337377117,1725634261425,-917.27,0.00020547,2]
[337377119,1725634261434,-500.0,0.00020547,2]
[337377121,1725634261446,-500.0,0.00020547,2]
[337377123,1725634261455,-500.0,0.00020547,2]
[337377125,1725634261465,-1216.52,0.00020547,2]
[337377127,1725634261475,-500.0,0.00020547,2]
[337377129,1725634261484,-500.0,0.00020547,2]
[337377131,1725634261493,-729.66,0.00020547,2]
[337377133,1725634261502,-160.53642874,0.00020547,2]
[337377135,1725634261511,-659.28784803,0.00020547,2]
[337377174,1725634261892,-500.0,0.00019178,2]
[337377177,1725634261902,-500.0,0.00019178,2]
[337377179,1725634261912,-500.0,0.00019178,2]
[337377180,1725634261922,-500.0,0.00019178,2]
[337377182,1725634261932,-34.342406,0.00019178,2]
[337377187,1725634261974,-465.657594,0.00019178,2]
[337377189,1725634261984,-500.0,0.00019452,2]
[337377191,1725634261994,-500.0,0.00019452,2]
[337377193,1725634262004,-500.0,0.00019452,2]
[337377195,1725634262013,-500.0,0.00019452,2]
[337377197,1725634262023,-500.0,0.00019726,2]
[337377199,1725634262033,-500.0,0.00019726,2]
[337377201,1725634262043,-500.0,0.00019726,2]
[337377203,1725634262053,-500.0,0.00019726,2]
[337377205,1725634262062,-500.0,0.0002,2]
[337377207,1725634262072,-500.0,0.0002,2]
[337377209,1725634262082,-500.0,0.0002,2]
[337377211,1725634262091,-500.0,0.0002,2]
[337377213,1725634262100,-500.0,0.00020273,2]
[337377215,1725634262109,-500.0,0.00020273,2]
[337377217,1725634262122,-124.55215197,0.00020547,2]
[337377219,1725634262133,-3175.26,0.00020547,2]
[337377221,1725634262143,-500.0,0.00020547,2]
[337377223,1725634262154,-1401.94,0.00020547,2]
[337377225,1725634262163,-572.1840676,0.00020547,2]
[337377227,1725634262174,-655.78,0.00020547,2]
[337377229,1725634262183,-1350.29,0.00020547,2]
[337377231,1725634262195,-500.0,0.00020547,2]
[337377233,1725634262204,-500.0,0.00020547,2]
[337377235,1725634262213,-1246.56,0.00020547,2]
[337377237,1725634262222,-500.0,0.00020547,2]
[337377239,1725634262231,-2842.06,0.00020547,2]
[337377241,1725634262241,-500.0,0.00020547,2]
[337377243,1725634262252,-2088.37,0.00020547,2]
[337377245,1725634262262,-500.0,0.00020547,2]
[337377247,1725634262272,-886.7,0.00020547,2]
[337377249,1725634262282,-1641.91,0.00020547,2]
[337377251,1725634262293,-732.84,0.00020547,2]
[337377252,1725634262304,-500.0,0.00020547,2]
[337377253,1725634262315,-500.0,0.00020547,2]
[337377254,1725634262325,-596.56,0.00020547,2]
[337377255,1725634262334,-795.53,0.00020547,2]
[337377256,1725634262346,-2029.91,0.00020547,2]
[337377258,1725634262356,-634.84,0.00020547,2]
[337377260,1725634262365,-500.0,0.00020547,2]
[337377262,1725634262375,-600.74,0.00020547,2]
[337377264,1725634262385,-3345.32607543,0.00020547,2]
[337377894,1725635233155,-300.0,0.00017911,2]
[337377895,1725635233184,-300.0,0.00017911,2]
[337377896,1725635233217,-24900.0,0.00017912,2]
[337377897,1725635233245,-166.666666,0.00018118,2]
[337377898,1725635233273,-166.666666,0.00018307,2]
[337377899,1725635233307,-166.666666,0.00018496,2]
[337377900,1725635233335,-166.666666,0.00018685,2]
[337377901,1725635233362,-166.666666,0.00018874,2]
[337377902,1725635233387,-1229.26742764,0.00018962,2]
[337377903,1725635233413,-4573.44109812,0.00019058,2]
[337377904,1725635233442,-166.666666,0.00019063,2]
[337377905,1725635233470,-20086.4131865,0.00019068,2]
[337377906,1725635233498,-637.88751288,0.00019073,2]
[337377907,1725635233526,-150.112233,0.000191,2]
[337377908,1725635233550,-170371.5554188,0.000191,2]
[337377909,1725635233587,-150.0,0.00019141,2]
[337377910,1725635233614,-554.65142218,0.00019167,2]
[337377911,1725635233642,-500.0,0.00019167,2]
[337377912,1725635233673,-500.0,0.00019167,2]
[337377913,1725635233701,-500.0,0.00019167,2]
[337377914,1725635233726,-212.42653953,0.00019167,2]
[337377915,1725635233753,-500.0,0.00019167,2]
[337377916,1725635233780,-500.0,0.00019167,2]
[337377917,1725635233819,-500.0,0.00019167,2]
[337377918,1725635233846,-500.0,0.00019167,2]
[337377919,1725635233874,-500.0,0.00019167,2]
[337377920,1725635233901,-293.62422604,0.00019167,2]
[337377921,1725635233929,-500.0,0.00019167,2]
[337377922,1725635233958,-500.0,0.00019167,2]
[337377923,1725635233986,-500.0,0.00019167,2]
[337377924,1725635234013,-500.0,0.00019167,2]
[337377925,1725635234039,-500.0,0.00019167,2]
[337377926,1725635234068,-500.0,0.00019167,2]
[337377927,1725635234096,-219.96269221,0.00019167,2]
[337377928,1725635234124,-500.0,0.00019167,2]
[337377929,1725635234151,-500.0,0.00019167,2]
[337377930,1725635234178,-500.0,0.00019167,2]
[337377931,1725635234204,-500.0,0.00019167,2]
[337377932,1725635234229,-500.0,0.00019167,2]
[337377933,1725635234255,-528.29050032,0.00019167,2]
[337377934,1725635234280,-500.0,0.00019167,2]
[337377935,1725635234311,-500.0,0.00019167,2]
[337377936,1725635234336,-500.0,0.00019167,2]
[337377937,1725635234361,-500.0,0.00019167,2]
[337377938,1725635234387,-500.0,0.00019167,2]
[337377939,1725635234412,-500.0,0.00019167,2]
[337377940,1725635234437,-500.0,0.00019167,2]
[337377941,1725635234463,-500.0,0.00019167,2]
[337377942,1725635234490,-500.0,0.00019167,2]
[337377943,1725635234516,-500.0,0.00019167,2]
[337377944,1725635234542,-500.0,0.00019167,2]
[337377945,1725635234573,-500.0,0.00019167,2]
[337377946,1725635234602,-500.0,0.00019167,2]
[337377947,1725635234630,-500.0,0.00019167,2]
[337377948,1725635234658,-500.0,0.00019167,2]
[337377949,1725635234686,-500.0,0.00019167,2]
[337377950,1725635234713,-500.0,0.00019167,2]
[337377951,1725635234742,-454.84610051,0.00019167,2]
[337377952,1725635234772,-500.0,0.00019167,2]
[337377953,1725635234799,-500.0,0.00019167,2]
[337377954,1725635234833,-500.0,0.00019167,2]
[337377955,1725635234862,-650.0,0.00019167,2]
[337377956,1725635234891,-500.0,0.00019167,2]
[337377957,1725635234919,-252581.135585,0.00019168,2]
[337377958,1725635234947,-95798.75419817,0.00019168,2]
[337377959,1725635245155,-71735.846922,0.00019168,2]
[337377960,1725635343960,1327.0,0.00027,120]
[337377987,1725635432420,-545.51,0.00018986,2]
[337377988,1725635432433,-272.82481109,0.00018986,2]
[337377989,1725635432449,-490.01325113,0.00018986,2]
[337377990,1725635432460,-2730.0,0.00018986,2]
[337377991,1725635432484,-7970.649658,0.00018986,2]
[337377992,1725635432496,-79099.55476796,0.00018986,2]
[337377993,1725635432507,-1075.60899915,0.00019073,2]
[337377994,1725635432517,-300.0,0.00019157,2]
[337377995,1725635432527,-50690.95510538,0.00019158,2]
[337377996,1725635432539,-14295.04258793,0.00019158,2]
[337379337,1725635452556,-2074.00196304,0.00019158,2]
[337379339,1725635452568,-198150.19270765,0.00019158,2]
[337379341,1725635452577,-500.0,0.00019173,2]
[337379343,1725635452587,-500.53621081,0.00019173,2]
[337379345,1725635452596,-388.25599553,0.00019177,2]
[337379347,1725635452606,-498.69857767,0.00019177,2]
[337379349,1725635452615,-500.0,0.00019177,2]
[337379351,1725635452624,-360.53695823,0.00019177,2]
[337379353,1725635452634,-500.0,0.00019177,2]
[337379355,1725635452643,-500.0,0.00019177,2]
[337379357,1725635452655,-500.0,0.00019177,2]
[337379359,1725635452664,-500.0,0.00019177,2]
[337379361,1725635452673,-500.0,0.00019177,2]
[337379363,1725635452683,-500.0,0.00019177,2]
[337379365,1725635452693,-500.0,0.00019177,2]
[337379367,1725635452703,-225.36561115,0.00019177,2]
[337379369,1725635452717,-500.0,0.00019177,2]
[337379371,1725635452727,-500.0,0.00019177,2]
[337379373,1725635452738,-383.87178895,0.00019177,2]
[337379375,1725635452748,-300.0,0.00019177,2]
[337379376,1725635452757,-500.0,0.00019178,2]
[337379378,1725635452767,-502.94807706,0.00019178,2]
[337379380,1725635452776,-500.0,0.00019178,2]
[337379382,1725635452785,-500.0,0.00019178,2]
[337379384,1725635452795,-500.0,0.00019178,2]
[337379386,1725635452805,-500.0,0.00019178,2]
[337379388,1725635452814,-500.0,0.00019178,2]
[337379390,1725635452823,-500.0,0.00019178,2]
[337379392,1725635452833,-500.0,0.00019178,2]
[337379394,1725635452843,-500.0,0.00019178,2]
[337379396,1725635452852,-500.0,0.00019178,2]
[337379398,1725635452862,-500.0,0.00019178,2]
[337379400,1725635452871,-500.0,0.00019178,2]
[337379402,1725635452881,-202.21917248,0.00019178,2]
[337379404,1725635452891,-500.0,0.00019178,2]
[337379406,1725635452900,-500.0,0.00019178,2]
[337379408,1725635452911,-500.0,0.00019178,2]
[337379410,1725635452920,-500.0,0.00019178,2]
[337379412,1725635452929,-500.0,0.00019178,2]
[337379414,1725635452938,-500.0,0.00019178,2]
[337379416,1725635452948,-500.0,0.00019178,2]
[337379418,1725635452963,-500.0230648,0.00019178,2]
[337379420,1725635452972,-345.54163527,0.00019178,2]
[337379422,1725635452981,-500.0,0.00019178,2]
[337379424,1725635452991,-500.0,0.00019178,2]
[337379426,1725635453002,-169.35113573,0.00019178,2]
[337379428,1725635453011,-500.0,0.00019178,2]
[337379430,1725635453021,-500.0,0.00019178,2]
[337379432,1725635453032,-500.0,0.00019178,2]
[337379434,1725635453045,-500.0,0.00019178,2]
[337379436,1725635453056,-500.0,0.00019178,2]
[337379438,1725635453066,-500.0,0.00019178,2]
[337379440,1725635453075,-500.0,0.00019178,2]
[337379442,1725635453085,-500.0,0.00019178,2]
[337379444,1725635453096,-500.0,0.00019178,2]
[337379446,1725635453105,-500.0,0.00019178,2]
[337379448,1725635453114,-500.0,0.00019178,2]
[337379450,1725635453123,-500.0,0.00019178,2]
[337379452,1725635453133,-500.0,0.00019178,2]
[337379454,1725635453142,-500.0,0.00019178,2]
[337379456,1725635453152,-500.0,0.00019178,2]
[337379458,1725635453162,-500.0,0.00019178,2]
[337379460,1725635453172,-500.0,0.00019178,2]
[337379462,1725635453182,-500.0,0.00019178,2]
[337379464,1725635453191,-500.0,0.00019178,2]
[337379466,1725635453202,-500.0,0.00019178,2]
[337379468,1725635453218,-198.83555248,0.00019178,2]
[337379470,1725635453228,-551.07198649,0.00019178,2]
[337379472,1725635453238,-500.0,0.00019178,2]
[337379474,1725635453248,-500.0,0.00019178,2]
[337379476,1725635453257,-500.0,0.00019178,2]
[337379478,1725635453268,-500.0,0.00019178,2]
[337379481,1725635453278,-500.0,0.00019178,2]
[337379483,1725635453288,-500.0,0.00019178,2]
[337379484,1725635453298,-500.0,0.00019178,2]
[337379486,1725635453308,-500.0,0.00019178,2]
[337379488,1725635453317,-500.0,0.00019178,2]
[337379490,1725635453326,-500.0,0.00019178,2]
[337379492,1725635453335,-500.0,0.00019178,2]
[337379494,1725635453344,-500.0,0.00019178,2]
[337379496,1725635453354,-500.0,0.00019178,2]
[337379498,1725635453364,-500.0,0.00019178,2]
[337379500,1725635453374,-500.0,0.00019178,2]
[337379502,1725635453383,-500.0,0.00019178,2]
[337379504,1725635453392,-500.0,0.00019178,2]
[337379506,1725635453402,-500.0,0.00019178,2]
[337379508,1725635453412,-500.0,0.00019178,2]
[337379510,1725635453421,-500.0,0.00019178,2]
[337379512,1725635453431,-500.0,0.00019178,2]
[337379514,1725635453442,-925.3,0.00019178,2]
[337379516,1725635453451,-500.0,0.00019178,2]
[337379518,1725635453466,-421.55068524,0.00019178,2]
[337379520,1725635453476,-500.0,0.00019178,2]
[337379522,1725635453485,-500.0,0.00019178,2]
[337379524,1725635453495,-500.0,0.00019178,2]
[337379526,1725635453504,-164.15737138,0.00019178,2]
[337379528,1725635453514,-500.0,0.00019178,2]
[337379529,1725635453523,-500.0,0.00019178,2]
[337379531,1725635453532,-500.0,0.00019178,2]
[337379533,1725635453541,-500.0,0.00019178,2]
[337379535,1725635453551,-500.0,0.00019178,2]
[337379537,1725635453561,-500.0,0.00019178,2]
[337379539,1725635453570,-500.0,0.00019178,2]
[337379541,1725635453580,-500.0,0.00019178,2]
[337379543,1725635453589,-500.0,0.00019178,2]
[337379545,1725635453599,-500.0,0.00019178,2]
[337379548,1725635453610,-500.0,0.00019178,2]
[337379550,1725635453619,-500.0,0.00019178,2]
[337379552,1725635453629,-334.20955014,0.00019178,2]
[337379554,1725635453639,-923.18,0.00019178,2]
[337379555,1725635453651,-507.51276403,0.00019178,2]
[337379557,1725635453660,-500.0,0.00019178,2]
[337379560,1725635453670,-500.0,0.00019178,2]
[337379562,1725635453680,-500.0,0.00019178,2]
[337379564,1725635453690,-500.0,0.00019178,2]
[337379566,1725635453700,-246.56051231,0.00019178,2]
[337379568,1725635453712,-500.0,0.00019178,2]
[337379570,1725635453721,-500.0,0.00019178,2]
[337379572,1725635453733,-500.0,0.00019178,2]
[337379574,1725635453744,-500.0,0.00019178,2]
[337379576,1725635453753,-500.0,0.00019178,2]
[337379578,1725635453763,-500.0,0.00019178,2]
[337379580,1725635453772,-388.01877037,0.00019178,2]
[337379582,1725635453782,-500.0,0.00019178,2]
[337379584,1725635453791,-500.0,0.00019178,2]
[337379586,1725635453801,-500.0,0.00019178,2]
[337379588,1725635453810,-500.0,0.00019178,2]
[337379590,1725635453820,-500.0,0.00019178,2]
[337379592,1725635453830,-500.0,0.00019178,2]
[337379594,1725635453840,-500.0,0.00019178,2]
[337379596,1725635453849,-500.0,0.00019178,2]
[337379598,1725635453859,-500.0,0.00019178,2]
[337379600,1725635453868,-500.0,0.00019178,2]
[337379602,1725635453878,-500.0,0.00019178,2]
[337379604,1725635453887,-500.0,0.00019178,2]
[337379606,1725635453897,-500.0,0.00019178,2]
[337379608,1725635453907,-500.0,0.00019178,2]
[337379610,1725635453917,-500.0,0.00019178,2]
[337379612,1725635453926,-500.0,0.00019178,2]
[337379614,1725635453937,-500.0,0.00019178,2]
[337379616,1725635453947,-500.0,0.00019178,2]
[337379618,1725635453958,-500.0,0.00019178,2]
[337379620,1725635453967,-511.77137534,0.00019178,2]
[337379622,1725635453977,-500.0,0.00019178,2]
[337379624,1725635453986,-500.0,0.00019178,2]
[337379626,1725635453996,-500.0,0.00019178,2]
[337379628,1725635454005,-202.29003797,0.00019178,2]
[337379630,1725635454016,-500.0,0.00019178,2]
[337379632,1725635454026,-229.87168581,0.00019178,2]
[337379634,1725635454037,-500.0,0.00019178,2]
[337379636,1725635454047,-500.0,0.00019178,2]
[337379639,1725635454058,-500.0,0.00019178,2]
[337379641,1725635454067,-500.0,0.00019178,2]
[337379643,1725635454077,-500.0,0.00019178,2]
[337379644,1725635454086,-500.0,0.00019178,2]
[337379646,1725635454096,-500.0,0.00019178,2]
[337379649,1725635454106,-500.0,0.00019178,2]
[337379651,1725635454115,-494.58732311,0.00019178,2]
[337379652,1725635454124,-500.0,0.00019178,2]
[337379654,1725635454134,-500.0,0.00019178,2]
[337379657,1725635454144,-556.09,0.00019178,2]
[337379659,1725635454155,-509.20041201,0.00019178,2]
[337379661,1725635454167,-500.0,0.00019178,2]
[337379663,1725635454176,-500.0,0.00019178,2]
[337379665,1725635454186,-500.0,0.00019178,2]
[337379666,1725635454195,-500.0,0.00019178,2]
[337379667,1725635454206,-500.0,0.00019178,2]
[337379668,1725635454215,-500.0,0.00019178,2]
[337379669,1725635454224,-500.0,0.00019178,2]
[337379670,1725635454233,-500.0,0.00019178,2]
[337379671,1725635454245,-154.2532325,0.00019178,2]
[337379672,1725635454255,-500.0,0.00019178,2]
[337379673,1725635454266,-651.2,0.00019178,2]
[337379674,1725635454275,-500.0,0.00019178,2]
[337379675,1725635454285,-500.0,0.00019178,2]
[337379676,1725635454295,-500.0,0.00019178,2]
[337379677,1725635454305,-500.0,0.00019178,2]
[337379678,1725635454316,-500.0,0.00019178,2]
[337379679,1725635454328,-500.0,0.00019178,2]